fUST/lending_fUST_20241118
["ID","MTS","AMOUNT","RATE_DAILY","PERIOD"]
[342456909,1731889838698,-500.0,0.00018897,2]
[342456910,1731889838707,-500.0,0.00018897,2]
[342456911,1731889838716,-521.66040855,0.00018897,2]
[342456912,1731889838727,-334.19133081,0.00018897,2]
[342456913,1731889838736,-500.0,0.00018897,2]
[342456914,1731889838746,-162.29582191,0.00018897,2]
[342456952,1731889842756,-317.45324,0.00018897,2]
[342456954,1731889842766,-317.45324,0.00018897,2]
[342456956,1731889842776,-317.45324,0.00018897,2]
[342456957,1731889842786,-317.45324,0.00018897,2]
[342456959,1731889842796,-337.70417809,0.00018897,2]
[342456960,1731889842806,-500.0,0.00018897,2]
[342456961,1731889842816,-500.0,0.00018897,2]
[342456962,1731889842826,-500.0,0.00018897,2]
[342456964,1731889842836,-474.1357088,0.00018897,2]
[342456965,1731889842846,-500.0,0.00018897,2]
[342456966,1731889842856,-500.0,0.00018897,2]
[342456967,1731889842866,-500.0,0.00018897,2]
[342456968,1731889842879,-226.16121022,0.00018897,2]
[342456985,1731889984428,163.916268,0.00013973,2]
[342456997,1731890762765,163.916268,0.00013973,2]
[342456998,1731890797511,400.0,0.0001401,2]
[342457056,1731891034854,-207.74892842,0.000187,2]
[342457057,1731891034864,-1456.2444708,0.00018796,2]
[342457058,1731891034874,-207.74892842,0.00018796,2]
[342457059,1731891034884,-3911.27209156,0.00018799,2]
[342457073,1731891038210,-1140.0,0.00018797,2]
[342457074,1731891038222,-15425.78781306,0.00018797,2]
[342457075,1731891038232,-2323.87453108,0.00018799,2]
[342457076,1731891038242,-400.0,0.000188,2]
[342457077,1731891038252,-400.0,0.000188,3]
[342457078,1731891038262,-800.0,0.0001887,2]
[342457079,1731891038271,-638.24,0.00018887,3]
[342457080,1731891038281,-300.0,0.00018895,2]
[342457081,1731891038291,-300.0,0.00018895,2]
[342457082,1731891038301,-174.95494609,0.00018896,2]
[342457083,1731891038311,-2049.50045167,0.00018896,2]
[342457084,1731891038320,-500.0,0.00018896,2]
[342457085,1731891038330,-500.0,0.00018896,2]
[342457086,1731891038340,-500.0,0.00018896,2]
[342457087,1731891038349,-500.0,0.00018896,2]
[342457088,1731891038359,-500.0,0.00018896,2]
[342457089,1731891038369,-500.0,0.00018896,2]
[342457090,1731891038379,-500.0,0.00018896,2]
[342457091,1731891038389,-500.0,0.00018896,2]
[342457092,1731891038398,-500.0,0.00018896,2]
[342457093,1731891038408,-500.0,0.00018896,2]
[342457094,1731891038417,-399.38898418,0.00018896,2]
[342457095,1731891038427,-500.0,0.00018896,2]
[342457096,1731891038437,-500.0,0.00018896,2]
[342457097,1731891038452,-500.0,0.00018896,2]
[342457098,1731891038461,-500.0,0.00018896,2]
[342457099,1731891038471,-500.0,0.00018896,2]
[342457100,1731891038480,-500.0,0.00018896,2]
[342457101,1731891038490,-500.0,0.00018896,2]
[342457102,1731891038499,-500.0,0.00018896,2]
[342457103,1731891038509,-500.0,0.00018896,2]
[342457104,1731891038519,-500.0,0.00018896,2]
[342457105,1731891038528,-500.0,0.00018896,2]
[342457106,1731891038538,-500.0,0.00018896,2]
[342457107,1731891038549,-500.0,0.00018896,2]
[342457108,1731891038559,-500.0,0.00018896,2]
[342457109,1731891038573,-500.0,0.00018896,2]
[342457110,1731891038583,-500.0,0.00018896,2]
[342457111,1731891038593,-500.0,0.00018896,2]
[342457112,1731891038603,-500.0,0.00018896,2]
[342457113,1731891038613,-500.0,0.00018896,2]
[342457114,1731891038623,-427.10496484,0.00018896,2]
[342457115,1731891038633,-500.0,0.00018896,2]
[342457116,1731891038645,-500.0,0.00018896,2]
[342457117,1731891038655,-151.0,0.00018896,2]
[342457118,1731891038666,-151.0,0.00018896,2]
[342457119,1731891038675,-151.0,0.00018896,2]
[342457120,1731891038685,-477.435957,0.00018896,2]
[342457121,1731891038697,-477.435957,0.00018896,2]
[342457122,1731891038707,-477.435957,0.00018896,2]
[342457123,1731891038716,-477.435957,0.00018896,2]
[342457124,1731891038726,-477.435957,0.00018896,2]
[342457125,1731891038736,-477.435957,0.00018896,2]
[342457126,1731891038745,-794.513075,0.00018896,2]
[342457127,1731891038756,-794.513075,0.00018896,2]
[342457128,1731891038765,-794.513075,0.00018896,2]
[342457129,1731891038775,-794.513075,0.00018896,2]
[342457130,1731891038785,-794.513075,0.00018896,2]
[342457131,1731891038794,-794.513075,0.00018896,2]
[342457132,1731891038803,-151.0,0.00018896,2]
[342457133,1731891038813,-151.0,0.00018896,2]
[342457134,1731891038822,-151.0,0.00018896,2]
[342457135,1731891038831,-151.0,0.00018896,2]
[342457136,1731891038841,-151.0,0.00018896,2]
[342457137,1731891038851,-151.0,0.00018896,2]
[342457138,1731891038860,-521.982657,0.00018896,2]
[342457139,1731891038870,-521.982657,0.00018896,2]
[342457140,1731891038881,-521.982657,0.00018896,2]
[342457141,1731891038890,-521.982657,0.00018896,2]
[342457142,1731891038900,-521.982657,0.00018896,2]
[342457143,1731891038909,-521.982657,0.00018896,2]
[342457144,1731891038919,-151.0,0.00018896,2]
[342457145,1731891038930,-151.0,0.00018896,2]
[342457146,1731891038940,-151.0,0.00018896,2]
[342457147,1731891038952,-154.620444,0.00018896,2]
[342457148,1731891038962,-151.0,0.00018896,2]
[342457149,1731891038971,-151.0,0.00018896,2]
[342457150,1731891038981,-151.0,0.00018896,2]
[342457151,1731891038991,-151.0,0.00018896,2]
[342457152,1731891039000,-151.0,0.00018896,2]
[342457153,1731891039010,-238.890042,0.00018896,2]
[342457154,1731891039020,-238.890042,0.00018896,2]
[342457155,1731891039029,-238.890042,0.00018896,2]
[342457156,1731891039039,-238.890042,0.00018896,2]
[342457157,1731891039048,-238.890042,0.00018896,2]
[342457158,1731891039058,-238.890042,0.00018896,2]
[342457159,1731891039067,-153.131,0.00018897,2]
[342457160,1731891039077,-317.45324,0.00018897,2]
[342457161,1731891039086,-317.45324,0.00018897,2]
[342457162,1731891039096,-317.45324,0.00018897,2]
[342457163,1731891039106,-317.45324,0.00018897,2]
[342457164,1731891039116,-1604.81733,0.00018897,2]
[342457165,1731891039125,-1604.81733,0.00018897,2]
[342457166,1731891039135,-1604.81733,0.00018897,2]
[342457167,1731891039145,-1604.81733,0.00018897,2]
[342457168,1731891039154,-1604.81733,0.00018897,2]
[342457169,1731891039163,-1604.81733,0.00018897,2]
[342457170,1731891039173,-1604.81733,0.00018897,2]
[342457171,1731891039183,-1604.81733,0.00018897,2]
[342457172,1731891039192,-151.0,0.00018897,2]
[342457173,1731891039205,-152.306952,0.00018897,2]
[342457174,1731891039215,-151.0,0.00018897,2]
[342457175,1731891039224,-151.0,0.00018897,2]
[342457176,1731891039233,-151.0,0.00018897,2]
[342457177,1731891039242,-229.393939,0.00018897,2]
[342457178,1731891039252,-151.0,0.00018897,2]
[342457179,1731891039261,-151.0,0.00018897,2]
[342457180,1731891039270,-151.0,0.00018897,2]
[342457181,1731891039279,-151.0,0.00018897,2]
[342457182,1731891039289,-565.350801,0.00018897,2]
[342457183,1731891039299,-565.350801,0.00018897,2]
[342457184,1731891039308,-565.350801,0.00018897,2]
[342457185,1731891039318,-565.350801,0.00018897,2]
[342457186,1731891039328,-565.350801,0.00018897,2]
[342457187,1731891039338,-565.350801,0.00018897,2]
[342457188,1731891039347,-151.0,0.00018897,2]
[342457189,1731891039357,-151.0,0.00018897,2]
[342457190,1731891039367,-151.0,0.00018897,2]
[342457191,1731891039377,-151.0,0.00018897,2]
[342457192,1731891039387,-151.0,0.00018897,2]
[342457193,1731891039396,-151.0,0.00018897,2]
[342457194,1731891039406,-151.0,0.00018897,2]
[342457195,1731891039416,-492.111154,0.00018897,2]
[342457196,1731891039426,-492.111154,0.00018897,2]
[342457197,1731891039436,-492.111154,0.00018897,2]
[342457199,1731891039448,-492.111154,0.00018897,2]
[342457200,1731891039458,-492.111154,0.00018897,2]
[342457202,1731891039467,-492.111154,0.00018897,2]
[342457204,1731891039477,-492.111154,0.00018897,2]
[342457205,1731891039487,-492.111154,0.00018897,2]
[342457206,1731891039497,-492.111154,0.00018897,2]
[342457207,1731891039507,-492.111154,0.00018897,2]
[342457208,1731891039517,-159.535856,0.00018897,2]
[342457209,1731891039526,-159.535856,0.00018897,2]
[342457210,1731891039536,-159.535856,0.00018897,2]
[342457211,1731891039546,-159.535856,0.00018897,2]
[342457212,1731891039556,-82.65752923,0.00018897,2]
[342457236,1731891043110,-655.22,0.00018887,3]
[342457237,1731891043120,-854.206853,0.00018896,2]
[342457238,1731891043130,-854.206853,0.00018896,2]
[342457239,1731891043140,-76.87832677,0.00018897,2]
[342457240,1731891043150,-159.535856,0.00018897,2]
[342457241,1731891043159,-159.535856,0.00018897,2]
[342457242,1731891043170,-159.535856,0.00018897,2]
[342457243,1731891043179,-159.535856,0.00018897,2]
[342457244,1731891043189,-159.535856,0.00018897,2]
[342457245,1731891043202,-159.535856,0.00018897,2]
[342457246,1731891043211,-159.535856,0.00018897,2]
[342457247,1731891043220,-159.535856,0.00018897,2]
[342457248,1731891043229,-159.535856,0.00018897,2]
[342457249,1731891043239,-151.0,0.00018897,2]
[342457250,1731891043249,-200.464994,0.00018897,2]
[342457251,1731891043258,-151.0,0.00018897,2]
[342457252,1731891043268,-151.0,0.00018897,2]
[342457253,1731891043279,-151.0,0.00018897,2]
[342457254,1731891043288,-151.0,0.00018897,2]
[342457255,1731891043298,-151.0,0.00018897,2]
[342457256,1731891043308,-151.0,0.00018897,2]
[342457257,1731891043317,-151.0,0.00018897,2]
[342457258,1731891043327,-151.0,0.00018897,2]
[342457259,1731891043336,-151.0,0.00018897,2]
[342457260,1731891043346,-151.0,0.00018897,2]
[342457261,1731891043356,-157.132722,0.00018897,2]
[342457262,1731891043365,-151.0,0.00018897,2]
[342457263,1731891043374,-151.0,0.00018897,2]
[342457264,1731891043384,-157.132722,0.00018897,2]
[342457265,1731891043393,-151.0,0.00018897,2]
[342457266,1731891043402,-157.132722,0.00018897,2]
[342457267,1731891043411,-157.132722,0.00018897,2]
[342457268,1731891043421,-151.0,0.00018897,2]
[342457269,1731891043430,-157.132722,0.00018897,2]
[342457270,1731891043440,-151.0,0.00018897,2]
[342457271,1731891043452,-157.132722,0.00018897,2]
[342457272,1731891043461,-208.2668,0.00018897,2]
[342457273,1731891043471,-157.132722,0.00018897,2]
[342457274,1731891043480,-157.132722,0.00018897,2]
[342457275,1731891043489,-157.132722,0.00018897,2]
[342457276,1731891043499,-157.132722,0.00018897,2]
[342457277,1731891043508,-157.132722,0.00018897,2]
[342457278,1731891043517,-157.132722,0.00018897,2]
[342457279,1731891043527,-157.132722,0.00018897,2]
[342457280,1731891043536,-157.132722,0.00018897,2]
[342457281,1731891043545,-151.0,0.00018897,2]
[342457282,1731891043555,-151.0,0.00018897,2]
[342457283,1731891043569,-151.0,0.00018897,2]
[342457284,1731891043580,-151.0,0.00018897,2]
[342457285,1731891043591,-151.0,0.00018897,2]
[342457286,1731891043603,-151.0,0.00018897,2]
[342457287,1731891043612,-151.0,0.00018897,2]
[342457288,1731891043621,-151.0,0.00018897,2]
[342457289,1731891043632,-151.0,0.00018897,2]
[342457290,1731891043642,-151.0,0.00018897,2]
[342457291,1731891043652,-151.0,0.00018897,2]
[342457292,1731891043661,-151.0,0.00018897,2]
[342457293,1731891043670,-151.0,0.00018897,2]
[342457294,1731891043679,-151.0,0.00018897,2]
[342457295,1731891043690,-151.0,0.00018897,2]
[342457296,1731891043700,-151.0,0.00018897,2]
[342457297,1731891043710,-1133.524973,0.00018897,2]
[342457298,1731891043720,-125.71800406,0.00018897,2]
[342457318,1731891058023,400.0,0.00014,3]
[342457319,1731891060179,400.0,0.00014,2]
[342457320,1731891111956,400.0,0.00014,2]
[342457321,1731891115064,400.0,0.00014,3]
[342457322,1731891121225,400.0,0.00014,4]
[342457325,1731891601531,161.740564,0.00013973,2]
[342457419,1731892238433,-300.0,0.00017719,2]
[342457420,1731892238443,-300.0,0.00017719,2]
[342457421,1731892238452,-12042.0602263,0.0001772,2]
[342457422,1731892238461,-7439.04074395,0.00018456,2]
[342457423,1731892238472,-530.0,0.00018515,2]
[342457424,1731892238482,-2388.0,0.00018515,2]
[342457425,1731892238491,-1110.0,0.00018515,2]
[342457426,1731892238500,-204.82516867,0.000187,2]
[342457427,1731892238509,-1010.38808483,0.000187,2]
[342457458,1731892246267,-436.74369154,0.000187,2]
[342457459,1731892246277,-719.34182,0.00018795,2]
[342457460,1731892246288,-1000.0,0.00018796,2]
[342457461,1731892246300,-374.7945836,0.00018797,2]
[342457462,1731892246311,-3674.73154938,0.00018797,2]
[342457466,1731892429075,161.740564,0.00013973,2]
[342457504,1731892930290,32970.00000001,0.000109,2]
[342457510,1731893250973,161.740564,0.00013973,2]
[342457541,1731893432780,-300.0,0.00017771,2]
[342457542,1731893432790,-300.0,0.00017771,2]
[342457543,1731893432800,-82.88012239,0.00017772,2]
[342457621,1731893438840,-9724.77978897,0.00017772,2]
[342457647,1731893443877,-2792.81771144,0.00017772,2]
[342457648,1731893443888,-728.50291303,0.0001845,2]
[342457668,1731894331721,161.740564,0.00013973,2]
[342457741,1731894632897,-172.5,0.000177,2]
[342457743,1731894632907,-345.452955,0.00017798,2]
[342457745,1731894632919,-300.0,0.00018129,2]
[342457747,1731894632928,-300.0,0.0001822,2]
[342457748,1731894632941,-10498.6152764,0.00018221,2]
[342457749,1731894632951,-1816.81412863,0.00018691,2]
[342457750,1731894632961,-215.47727271,0.00018773,2]
[342457751,1731894632971,-12073.88395822,0.0001879,2]
[342457752,1731894632980,-6726.1796815,0.0001879,2]
[342457754,1731894632990,-1000.0,0.00018791,2]
[342457755,1731894633002,-400.0,0.000188,3]
[342457758,1731894633012,-400.0,0.000188,4]
[342457760,1731894633022,-400.0,0.000188,4]
[342457762,1731894633032,-400.0,0.000188,3]
[342457764,1731894633042,-400.0,0.000188,3]
[342457766,1731894633052,-400.0,0.000188,2]
[342457768,1731894633062,-150.849,0.0001887,2]
[342457770,1731894633072,-530.0,0.0001887,2]
[342457772,1731894633082,-1186.03,0.0001887,2]
[342457774,1731894633091,-2385.0,0.0001887,2]
[342457776,1731894633102,-150.069,0.0001887,2]
[342457778,1731894633112,-360.106,0.0001887,2]
[342457780,1731894633123,-707.26028413,0.0001887,2]
[342457782,1731894633132,-504.34363204,0.00018873,2]
[342457784,1731894633143,-4368.952664,0.00018873,2]
[342457787,1731894633153,-4368.952664,0.00018873,2]
[342457789,1731894633162,-167.823081,0.00018873,2]
[342457791,1731894633172,-167.823081,0.00018873,2]
[342457793,1731894633183,-204.604571,0.00018873,2]
[342457795,1731894633196,-204.604571,0.00018873,2]
[342457797,1731894633206,-242.752673,0.00018873,2]
[342457799,1731894633216,-294.787686,0.00018873,2]
[342457801,1731894633226,-294.787686,0.00018873,2]
[342457803,1731894633237,-475.72,0.00018878,3]
[342457805,1731894633248,-1174.767858,0.00018879,2]
[342457807,1731894633259,-1174.767858,0.00018879,2]
[342457809,1731894633270,-151.0,0.00018879,2]
[342457812,1731894633280,-151.0,0.00018879,2]
[342457814,1731894633290,-151.0,0.00018879,2]
[342457816,1731894633300,-899.382832,0.00018879,2]
[342457818,1731894633311,-899.382832,0.00018879,2]
[342457820,1731894633321,-151.0,0.00018879,2]
[342457822,1731894633331,-350.57108214,0.00018887,2]
[342457824,1731894633341,-333.76389944,0.00018887,2]
[342457924,1731894641695,-3302.15772437,0.00018788,2]
[342457925,1731894641707,-2763.72850793,0.00018788,2]
[342457945,1731894643798,-209.66774679,0.00018773,2]
[342457946,1731894643810,-4859.49978201,0.00018788,2]
[342457972,1731895192333,161.740564,0.00013973,2]
[342458062,1731895833470,-9378.5645372,0.00018617,2]
[342458063,1731895833481,-300.0,0.00018669,2]
[342458064,1731895833495,-300.0,0.00018669,2]
[342458065,1731895833508,-1806.25683252,0.0001867,2]
[342458066,1731895833522,-276.92735277,0.00018699,2]
[342458067,1731895833535,-29922.93741051,0.000187,2]
[342458084,1731895839247,-471.50685609,0.000187,2]
[342458085,1731895839258,-2471.29908991,0.000187,2]
[342458086,1731895839296,-694.05627454,0.000187,2]
[342458087,1731895839308,-6682.98962989,0.000187,2]
[342458110,1731895843965,-15175.04564254,0.000187,2]
[342458111,1731895843978,-9674.80218569,0.000187,2]
[342458112,1731895843990,-6066.45713169,0.000187,2]
[342458113,1731895844003,-2463.56972174,0.000187,2]
[342458114,1731895844014,-116.230566,0.000187,2]
[342458115,1731895844026,-329.49,0.00018769,3]
[342458116,1731895844036,-305.93736228,0.0001877,2]
[342458118,1731895844046,-335.64581766,0.00018778,2]
[342458119,1731895844055,-495.08132628,0.00018778,2]
[342458120,1731895844067,-4.91867372,0.00018778,2]
[342458121,1731895844077,-500.0,0.00018778,2]
[342458122,1731895844086,-500.0,0.00018778,2]
[342458123,1731895844096,-424.13335098,0.00018778,2]
[342458124,1731895844105,-293.33395713,0.00018778,2]
[342458125,1731895844114,-177.21718398,0.00018778,2]
[342458133,1731895846949,-322.78281602,0.00018778,2]
[342458134,1731895846960,-49.86546112,0.00018778,2]
[342458142,1731895868688,161.740564,0.00013973,2]
[342458143,1731895930207,178.073767,0.00025,120]
[342458145,1731896670662,161.740564,0.00013973,2]
[342458164,1731896970823,500.0,0.000135,14]
[342458165,1731896972014,500.0,0.000135,14]
[342458166,1731896972934,500.0,0.000135,14]
[342458167,1731896973820,500.0,0.000135,14]
[342458168,1731896974611,500.0,0.000135,14]
[342458169,1731896975378,500.0,0.000135,14]
[342458170,1731896976153,500.0,0.000135,14]
[342458171,1731896976959,500.0,0.000135,14]
[342458172,1731896977741,500.0,0.000135,14]
[342458173,1731896978539,500.0,0.000135,14]
[342458178,1731896992253,500.0,0.000135,14]
[342458179,1731896993503,500.0,0.000135,14]
[342458180,1731896995313,500.0,0.000135,14]
[342458181,1731897011281,356.68,0.000135,14]
[342458229,1731897032234,-9378.5645372,0.00018573,2]
[342458231,1731897032245,-300.0,0.00018676,2]
[342458232,1731897032255,-300.0,0.00018676,2]
[342458233,1731897032265,-1580.47472849,0.00018677,2]
[342458234,1731897032275,-6566.56073431,0.00018683,2]
[342458418,1731897046076,-3410.49070292,0.00018683,2]
[342458419,1731897046086,-2597.3321213,0.00018684,2]
[342458420,1731897046096,-334.96,0.00018768,3]
[342458421,1731897046106,-314.33790405,0.00018777,2]
[342458422,1731897046116,-255.75927581,0.00018777,2]
[342458423,1731897046125,-500.0,0.00018777,2]
[342458424,1731897046135,-500.0,0.00018777,2]
[342458425,1731897046145,-181.09004326,0.00018777,2]
[342458436,1731897595644,161.740564,0.00013973,2]
[342458568,1731898238403,-581.96765217,0.00017057,2]
[342458569,1731898238415,-300.0,0.00017057,2]
[342458570,1731898238426,-300.0,0.00017057,2]
[342458571,1731898238436,-2068.22640183,0.00017058,2]
[342458615,1731898243367,-2048.05319491,0.00017058,2]
[342458617,1731898243380,-9768.00830841,0.00017058,2]
[342458618,1731898243392,-243.56999885,0.00017058,2]
[342458619,1731898243403,-581.96765215,0.00017071,2]
[342458620,1731898243413,-581.96765215,0.00017085,2]
[342458621,1731898243423,-1481.35489639,0.00017157,2]
[342458627,1731898407207,161.740564,0.00013973,2]
[342458634,1731899228895,180.28,0.000248,120]
[342458635,1731899238358,400.0,0.0001401,2]
[342458636,1731899240600,400.0,0.0001401,3]
[342458672,1731899433091,-497.22932244,0.00015991,2]
[342458673,1731899433103,-139.34429056,0.00015991,2]
[342458674,1731899433114,-2156.4905427,0.00016505,2]
[342458675,1731899433123,-1078.83571998,0.00016742,2]
[342458676,1731899433132,-39747.92535872,0.0001676,2]
[342458677,1731899433698,-13233.52557053,0.0001676,2]
[342458678,1731899433711,-3120.99711537,0.0001676,2]
[342458702,1731899438670,-821.30367299,0.0001676,2]
[342458752,1731899443525,-504.0538845,0.00016509,2]
[342458753,1731899443535,-2097.85351433,0.0001676,2]
[342458754,1731899443547,-1324.41,0.0001676,2]
[342458755,1731899443558,-3096.62996676,0.0001676,2]
[342458756,1731899443570,-2520.72,0.0001676,2]
[342458899,1731900633063,-300.0,0.00015474,2]
[342458900,1731900633073,-216.1327671,0.00015474,2]
[342458901,1731900633116,-83.8672329,0.00015474,2]
[342458902,1731900633125,-4076.74162977,0.00015475,2]
[342458925,1731900638959,-534.46,0.00015475,2]
[342458926,1731900638972,-995.93668275,0.00015475,2]
[342458927,1731900638984,-801.27511923,0.00015475,2]
[342458953,1731900643599,-12667.44023663,0.00015475,2]
[342458968,1731900646707,-457.5752417,0.00015475,2]
[342458969,1731900646719,-477.50372888,0.00015475,2]
[342458970,1731901138051,503.98,0.00010959,2]
[342458971,1731901148615,393.74,0.00010959,2]
[342458972,1731901169625,656.22,0.00010959,2]
[342458973,1731901180411,328.12,0.00010959,2]
[342458974,1731901201339,807.63,0.00010959,2]
[342458975,1731901222133,835.13,0.00010959,2]
[342458976,1731901233566,370.68,0.00010959,2]
[342458977,1731901253691,338.2,0.00010959,2]
[342458978,1731901264490,785.31,0.00010959,2]
[342458979,1731901285323,545.36,0.00010959,2]
[342458980,1731901296146,206.58,0.00010959,2]
[342458981,1731901300026,-150.0,0.00025175,120]
[342458982,1731901300052,-150.0,0.00025178,120]
[342458983,1731901300327,-941.67777902,0.00026137,120]
[342458984,1731901300354,-354.38891,0.00027,120]
[342458985,1731901300379,-354.38891,0.000276,120]
[342458986,1731901300406,-178.833,0.00028005,120]
[342458987,1731901300430,-354.38891,0.000282,120]
[342458988,1731901300463,-178.85,0.0002847,120]
[342458989,1731901300485,-53855.55774478,0.00028498,120]
[342458990,1731901317218,172.15,0.00010959,2]
[342458991,1731901327964,860.75,0.00010959,2]
[342458992,1731901377057,178.85,0.0002847,120]
[342458994,1731901390056,571.03,0.00010959,2]
[342458995,1731901400590,216.3,0.00010959,2]
[342458996,1731901421449,330.46,0.00010959,2]
[342458997,1731901431997,751.05,0.00010959,2]
[342458999,1731901555422,8926.0,0.00015,60]
[342459001,1731901592633,400.0,0.000282,120]
[342459004,1731901619730,373.69835518,0.000282,120]
[342459009,1731901715668,200.0,0.000282,120]
[342459010,1731901729120,200.0,0.000282,120]
[342459016,1731901815773,205.54823594,0.00026137,120]
[342459057,1731901839335,-3451.4999798,0.00014361,2]
[342459063,1731901841136,-9136.786395,0.00014361,2]
[342459076,1731901844964,-10041.0781061,0.00014361,2]
[342459077,1731901844974,-1693.75853598,0.00014612,2]
[342459083,1731901846891,-800.046424,0.00014612,2]
[342459106,1731903034489,-209.66774679,0.00014371,2]
[342459107,1731903034498,-4260.24657395,0.00014377,2]
[342459165,1731903038126,-2950.68247314,0.00014377,2]
[342459171,1731903039709,-1159.23012836,0.00014377,2]
[342459172,1731903039719,-410.1794934,0.00014471,2]
[342459173,1731903039729,-470.3139205,0.00014477,2]
[342459174,1731903039739,-300.0,0.00014514,2]
[342459175,1731903039750,-300.0,0.00014514,2]
[342459176,1731903039761,-3182.33847162,0.00014517,2]
[342459195,1731903042768,-677.85585357,0.00014517,2]
[342459196,1731903042823,-1324.65651951,0.00014517,2]
[342459197,1731903042832,-183.7367373,0.00014557,2]
[342459198,1731903042843,-9546.2649377,0.00014793,2]
[342459199,1731903042852,-152.0,0.00014911,2]
[342459200,1731903042862,-162.729278,0.0001556,2]
[342459201,1731903042872,-162.729278,0.00015569,2]
[342459202,1731903042881,-162.729278,0.00015578,2]
[342459203,1731903042891,-162.729278,0.00015586,2]
[342459204,1731903042900,-162.729278,0.00015595,2]
[342459205,1731903042910,-162.729278,0.00015604,2]
[342459207,1731903042919,-162.729278,0.00015612,2]
[342459208,1731903042928,-162.729278,0.00015621,2]
[342459209,1731903042937,-162.729278,0.0001563,2]
[342459210,1731903042946,-162.729278,0.00015638,2]
[342459211,1731903042956,-282.1111075,0.0001586,2]
[342459212,1731903042965,-523.78301979,0.00015867,2]
[342459233,1731903286151,538.11,0.00010959,2]
[342459234,1731903296679,822.11,0.00010959,2]
[342459235,1731903318634,311.4,0.00010959,2]
[342459236,1731903329406,172.12,0.00010959,2]
[342459237,1731903339923,860.63,0.00010959,2]
[342459238,1731903350653,180.21,0.00010959,2]
[342459239,1731903361190,150.18,0.00010959,2]
[342459241,1731903371744,750.91,0.00010959,2]
[342459242,1731903543109,500.0,0.000137,2]
[342459243,1731903543493,500.0,0.000137,2]
[342459244,1731903544211,500.0,0.000137,2]
[342459245,1731903544307,500.0,0.000137,2]
[342459246,1731903544708,500.0,0.000137,2]
[342459247,1731903545144,500.0,0.000137,2]
[342459248,1731903545539,500.0,0.000137,2]
[342459249,1731903545956,500.0,0.000137,2]
[342459250,1731903546331,500.0,0.000137,2]
[342459251,1731903546764,500.0,0.000137,2]
[342459252,1731903547207,500.0,0.000137,2]
[342459253,1731903547579,500.0,0.000137,2]
[342459254,1731903547997,500.0,0.000137,2]
[342459255,1731903548394,500.0,0.000137,2]
[342459256,1731903548764,500.0,0.000137,2]
[342459257,1731903549292,500.0,0.000137,2]
[342459258,1731903549594,585.98782325,0.000137,2]
[342459272,1731904002331,497.2293225,0.00013446,2]
[342459273,1731904019113,-183.7367225,0.0001402,2]
[342459274,1731904019133,-411.24041923,0.0001409,2]
[342459275,1731904019154,-300.0,0.00014171,2]
[342459276,1731904019175,-300.0,0.00014171,2]
[342459277,1731904019194,-694.104267,0.00014172,2]
[342459278,1731904019215,-8191.99957227,0.00014172,2]
[342459279,1731904096524,235.4313208,0.00013907,2]
[342459280,1731904111760,221.85915822,0.00013907,2]
[342459281,1731904114326,1997.7705299,0.00013897,2]
[342459292,1731904128799,5570.80414661,0.000109,2]